bitfinex/quotes_ETHUSD_20260121
["timestamp","ask_amount","ask_price","bid_price","bid_amount"]
[1769017976633,14.4622394,2905.4,2903.9,0.07632396]
[1769017977188,3.44186686,2905.4,2903.9,7.93033187]
[1769017977455,3.44139307,2905.8,2904.0,0.07632396]
[1769017977659,6.88278614,2905.8,2904.0,0.07632396]
[1769017977857,21.34405411,2905.8,2903.9,7.85400791]
[1769017978049,7.57848183,2905.7,2903.7,0.07632396]
[1769017978222,10.32488985,2905.6,2903.9,0.07632396]
[1769017978428,9.368819,2905.5,2903.5,7.93033187]
[1769017978629,9.368819,2905.5,2903.5,0.07632396]
[1769017978967,1.79033717,2905.5,2904.1,0.07632396]
[1769017979167,6.88136526,2906.4,2904.5,0.07632396]
[1769017979330,6.88136526,2906.4,2904.7,0.07632396]
[1769017979532,6.88136526,2906.4,2904.9,0.07632396]
[1769017979743,3.44068263,2906.4,2905.1,0.07632396]
[1769017980053,0.34406826,2906.3,2904.9,0.07632396]
[1769017980240,6.88183882,2906.2,2904.3,3.44317047]
[1769017980434,7.94378252,2906.1,2904.2,7.19476161]
[1769017980778,0.569,2906.0,2903.7,7.19476161]
[1769017980979,7.94378252,2905.8,2903.6,0.64532396]
[1769017981164,7.94378252,2905.8,2903.6,0.569]
[1769017981374,0.001,2905.6,2904.3,0.07632396]
[1769017981686,0.001,2905.6,2904.1,7.27108557]
[1769017982038,7.94478252,2905.6,2903.7,0.07632396]
[1769017982250,6.88373372,2905.4,2903.8,0.07632396]
[1769017982771,6.88373372,2905.4,2903.7,10.63863083]
[1769017982944,10.32560058,2905.4,2903.7,7.19476161]
[1769017983140,7.94378252,2905.3,2903.2,7.19476161]
[1769017983364,7.94378252,2905.3,2903.7,0.07632396]
[1769017983564,2.171125,2905.2,2903.7,0.07632396]
[1769017983766,4.2362603,2905.5,2904.1,0.07632396]
[1769017984087,3.44270636,2905.6,2904.1,0.07632396]
[1769017984249,0.001,2905.6,2903.9,10.71461367]
[1769017984439,0.001,2905.6,2904.1,0.07632396]
[1769017984640,0.68937861,2905.6,2903.9,10.71461367]
[1769017984863,0.569,2906.3,2903.9,10.71461367]
[1769017984864,0.38803902,2906.8,2905.0,0.07632396]
[1769017985194,3.4394992,2907.4,2906.1,0.07632396]
[1769017985559,3.43878954,2908.0,2906.5,0.07632396]
[1769017985877,3.43878954,2908.0,2907.1,0.07632396]
[1769017985878,0.34387895,2908.0,2907.1,0.07632396]
[1769017986079,6.87474218,2909.2,2907.2,0.07632396]
[1769017986294,6.87474218,2909.2,2907.4,3.4394992]
[1769017986444,6.87474218,2909.2,2906.8,0.07632396]
[1769017986445,7.94378252,2909.0,2906.4,7.19476161]
[1769017986643,30.0,2909.1,2906.5,0.07632396]
[1769017986644,7.94378252,2908.6,2906.5,0.07632396]
[1769017986874,7.94378252,2908.3,2906.1,0.07632396]
[1769017987039,7.94378252,2908.3,2906.2,0.07632396]
[1769017987244,7.94378252,2908.1,2905.4,0.07632396]
[1769017987445,10.0,2908.4,2904.5,0.07632396]
[1769017987446,7.94378252,2907.6,2904.8,3.44257492]
[1769017987753,7.94378252,2907.0,2904.7,0.07632396]
[1769017988074,7.94378252,2906.9,2905.1,0.07632396]
[1769017988278,3.60785579,2908.0,2905.3,0.07632396]
[1769017988279,0.79437825,2906.8,2905.3,0.07632396]
[1769017988482,7.94378252,2907.5,2905.3,0.07632396]
[1769017988483,6.88065502,2906.7,2905.3,0.07632396]
[1769017988683,10.32098253,2906.7,2904.7,0.07632396]
[1769017988982,6.88065502,2906.7,2904.9,0.07632396]
[1769017989148,13.76131004,2906.7,2904.7,0.07632396]
[1769017989355,1.376131,2906.6,2904.5,7.27108557]
[1769017989553,1.376131,2906.6,2904.7,0.07632396]
[1769017990369,1.376131,2906.6,2904.5,0.07632396]
[1769017990370,6.8811285,2906.5,2904.5,0.07632396]
[1769017990572,30.0,2906.3,2904.0,0.569]
[1769017990886,17.94378252,2906.4,2903.4,5.1670623]
[1769017990887,7.94378252,2905.8,2903.4,0.07632396]
[1769017991050,7.94378252,2905.6,2903.4,0.07632396]
[1769017991254,7.94378252,2905.6,2903.6,0.07632396]
[1769017991898,7.94378252,2905.6,2903.8,3.52007389]
[1769017992101,22.29355959,2906.5,2905.0,0.07632396]
[1769017992102,6.8811285,2906.5,2905.0,0.07632396]
[1769017992309,3.43912762,2907.8,2905.0,0.07632396]
[1769017992310,3.44011228,2906.9,2905.4,0.07632396]
[1769017992451,30.0,2907.4,2905.4,0.07632396]
[1769017992976,14.637,2907.4,2905.4,0.07632396]
[1769017993477,7.94378252,2907.3,2905.4,0.07632396]
[1769017994349,10.31920746,2907.2,2905.4,0.07632396]
[1769017994555,1.826299,2907.1,2905.4,3.51818344]
[1769017994773,6.87805212,2907.8,2906.0,0.07632396]
[1769017994977,6.711212,2907.8,2906.2,0.07632396]
[1769017995700,14.37254474,2907.8,2906.0,0.07632396]
[1769017995870,6.711212,2907.8,2906.2,0.07632396]
[1769017996070,1.07191626,2907.7,2905.8,0.07632396]
[1769017996381,1.07191626,2907.7,2906.4,0.07632396]
[1769017996382,3.43926262,2907.6,2906.4,0.07632396]
[1769017996699,4.51115892,2907.7,2906.5,0.07632396]
[1769017996864,4.51106387,2907.7,2906.5,0.07632396]
[1769017997263,1.07191626,2907.7,2906.5,0.07632396]
[1769017997471,3.43907905,2907.8,2906.5,0.07632396]
[1769017997883,6.8781581,2907.8,2906.5,0.07632396]
[1769017998191,10.31723715,2907.8,2906.0,0.07632396]
[1769017998495,3.43855305,2908.2,2906.8,0.07632396]
[1769017998696,6.87713396,2908.2,2906.8,0.07632396]
[1769017998865,0.6877134,2908.1,2906.8,0.07632396]
[1769017999889,0.6877134,2908.1,2906.2,3.44087629]
[1769018000088,6.87521484,2909.0,2907.2,0.07632396]
[1769018000494,6.87474218,2909.2,2907.6,0.07632396]
[1769018000721,3.43737109,2909.2,2907.6,0.07632396]
[1769018000994,3.43737109,2909.2,2907.0,7.9116851]
[1769018000995,10.31211327,2909.2,2907.1,7.83536114]
[1769018001187,10.31211327,2909.2,2907.4,0.07632396]
[1769018001188,1.03121133,2909.1,2907.4,0.07632396]
[1769018002002,1.03121133,2909.1,2907.2,0.07632396]
[1769018002003,8.69254407,2909.1,2907.1,0.07632396]
[1769018002233,8.69254407,2909.1,2907.3,0.07632396]
[1769018002512,10.31282226,2909.0,2907.1,0.07632396]
[1769018002660,10.31282226,2909.0,2907.3,0.07632396]
[1769018002860,10.31282226,2909.0,2907.1,0.07632396]
[1769018002861,1.90053663,2908.9,2907.1,0.07632396]
[1769018003073,1.90053663,2908.9,2907.3,0.07632396]
[1769018003296,1.90053663,2908.9,2907.5,0.07632396]
[1769018003509,6.87521484,2909.0,2907.5,0.07632396]
[1769018003664,10.31282226,2909.0,2907.1,0.07632396]
[1769018003864,7.66133274,2908.9,2906.8,0.07632396]
[1769018004303,7.66133274,2908.7,2906.6,0.07632396]
[1769018004584,21.41412626,2908.5,2906.5,0.07632396]
[1769018004804,2.14141263,2908.4,2906.7,0.07632396]
[1769018005106,2.14141263,2908.4,2906.5,0.07632396]
[1769018005303,2.14141263,2908.4,2906.7,0.07632396]
[1769018005607,7.66133274,2909.2,2907.4,0.07632396]
[1769018005773,6.8749785,2909.1,2907.6,0.07632396]
[1769018006169,10.0,2909.7,2907.8,0.07632396]
[1769018006170,6.87403332,2909.5,2907.8,0.07632396]
[1769018006399,0.68740333,2909.4,2907.8,0.07632396]
[1769018006580,6.87450588,2909.3,2907.8,0.07632396]
[1769018006782,10.31175882,2909.3,2907.4,0.07632396]
[1769018006982,13.74901176,2909.3,2907.5,0.07632396]
[1769018007208,7.66133274,2909.2,2907.2,0.07632396]
[1769018007409,2.14103445,2909.1,2907.4,0.07632396]
[1769018007777,13.74901176,2909.3,2907.4,0.07632396]
[1769018008685,6.87450588,2909.3,2907.6,0.07632396]
[1769018008910,10.31175882,2909.3,2907.8,0.07632396]
[1769018009112,6.87450588,2909.3,2907.8,0.07632396]
[1769018009285,3.43725294,2909.3,2908.1,0.07632396]
[1769018009478,3.43725294,2909.3,2907.8,0.07632396]
[1769018009479,0.00197284,2910.0,2908.0,0.07632396]
[1769018009676,0.00197284,2910.0,2907.6,0.07632396]
[1769018009677,7.66133274,2909.8,2907.6,0.07632396]
[1769018009872,11.05248522,2909.7,2908.0,0.07632396]
[1769018010077,11.05248522,2909.7,2907.8,0.07632396]
[1769018010288,7.66133274,2909.5,2907.3,7.9116851]
[1769018010509,30.0,2909.2,2906.9,0.07632396]
[1769018010681,10.31282226,2909.0,2907.1,0.07632396]
[1769018010885,37.66133274,2908.9,2906.7,7.9116851]
[1769018011081,7.66133274,2908.8,2906.6,0.002]
[1769018011311,7.66133274,2908.8,2906.7,0.07632396]
[1769018011515,0.76613327,2908.7,2906.7,0.07632396]
[1769018011878,0.76613327,2908.7,2906.9,0.07632396]
[1769018012180,0.76613327,2908.7,2907.1,0.07632396]
[1769018012509,10.31282226,2909.0,2907.3,0.07632396]
[1769018012713,13.74773904,2909.6,2907.6,0.07632396]
[1769018012911,14.31673904,2909.6,2907.6,0.07632396]
[1769018013115,10.87976806,2909.6,2907.8,0.07632396]
[1769018013424,0.00197284,2910.0,2908.3,0.07632396]
[1769018013575,3.43663684,2909.9,2908.5,0.07632396]
[1769018013774,0.00197284,2910.0,2909.1,0.07632396]
[1769018014006,0.00197284,2910.0,2908.8,0.07632396]
[1769018014208,0.00197284,2910.0,2909.0,0.07632396]
[1769018014712,3.43841563,2910.0,2908.8,0.07632396]
[1769018014918,0.00197284,2910.0,2908.8,0.07632396]
[1769018015087,0.00197284,2910.0,2908.5,0.07632396]
[1769018015291,0.00197284,2910.0,2908.7,0.07632396]
[1769018015487,0.00197284,2910.0,2908.5,3.51448166]
[1769018015488,0.00197284,2910.0,2908.5,0.07632396]
[1769018015886,0.00197284,2910.0,2908.7,0.07632396]
[1769018017048,0.00197284,2910.0,2908.5,0.07632396]
[1769018017393,0.00197284,2910.0,2908.7,0.07632396]
[1769018017816,0.00197284,2910.0,2908.0,0.07632396]
[1769018018401,7.66133274,2909.8,2907.8,0.07632396]
[1769018018601,7.66133274,2909.7,2907.4,0.64532396]
[1769018018827,13.7485392,2909.4,2907.3,0.07632396]
[1769018019028,37.66133274,2909.3,2906.7,0.07632396]
[1769018019337,30.0,2909.1,2906.6,0.002]
[1769018020921,30.0,2908.9,2906.6,0.002]
[1769018021408,30.0,2908.8,2906.6,0.002]
[1769018021636,30.0,2908.6,2906.6,0.002]
[1769018021938,0.569,2908.5,2906.6,0.002]
[1769018022114,3.00369903,2908.7,2906.6,0.002]
[1769018022319,30.0,2908.9,2906.6,0.002]
[1769018022529,14.349,2908.6,2906.6,0.002]
[1769018023009,13.75279352,2908.5,2906.6,0.002]
[1769018023212,30.0,2908.4,2906.6,0.002]
[1769018023852,29.298,2908.2,2906.6,0.002]
[1769018024061,3.39115248,2908.1,2906.6,0.002]
[1769018024214,30.0,2908.2,2906.6,0.002]
[1769018024416,7.66133274,2907.9,2906.6,0.002]
[1769018024653,30.0,2907.6,2905.0,0.07632396]
[1769018024850,7.66133274,2907.2,2905.0,0.07632396]
[1769018025054,7.66133274,2907.0,2904.9,0.07632396]
[1769018026346,7.66133274,2907.0,2904.6,0.07632396]
[1769018026541,7.66133274,2907.0,2903.9,7.81043073]
[1769018026739,7.17754935,2906.6,2904.1,0.002]
[1769018026940,20.94122699,2906.2,2904.1,0.002]
[1769018027146,21.51022699,2906.2,2904.1,0.002]
[1769018027348,18.06930758,2906.2,2904.1,0.002]
[1769018027555,18.06930758,2906.2,2904.2,0.07632396]
[1769018027854,2.15101655,2906.1,2904.1,0.002]
[1769018028221,7.17754935,2905.9,2904.1,0.002]
[1769018028416,0.569,2905.8,2904.1,0.002]
[1769018028622,17.74654935,2905.8,2904.1,0.002]
[1769018028840,8.95220428,2905.7,2904.1,0.002]
[1769018029048,5.5920593,2906.1,2904.5,0.07632396]
[1769018029253,6.88208056,2906.1,2904.5,0.07632396]
[1769018031259,7.17754935,2906.2,2904.2,0.07632396]
[1769018031500,7.17754935,2906.2,2904.1,0.002]
[1769018031671,3.89,2905.9,2904.1,0.002]
[1769018031867,2.10675494,2905.8,2904.2,0.07632396]
[1769018032067,0.569,2906.2,2904.2,0.07632396]
[1769018032885,10.0,2906.4,2904.2,0.07632396]
[1769018033094,16.528,2906.2,2904.2,0.07632396]
[1769018033296,6.88207562,2906.1,2904.4,0.07632396]
[1769018033709,10.32311343,2906.1,2904.1,0.002]
[1769018034011,7.17754935,2905.6,2904.1,0.002]
[1769018034182,7.17754935,2905.5,2904.1,0.002]
[1769018034377,7.74654935,2905.5,2904.1,0.002]
[1769018034582,30.0,2905.4,2904.1,0.002]
[1769018034777,3.39115248,2905.3,2904.1,0.002]
[1769018035003,30.0,2905.4,2904.1,0.002]
[1769018035397,10.32595599,2905.3,2904.1,0.002]
[1769018035595,10.32595599,2905.3,2904.4,0.002]
[1769018035797,37.17754935,2905.2,2904.1,0.002]
[1769018036086,17.17754935,2905.2,2903.9,0.002]
[1769018036292,3.09454907,2905.1,2903.9,0.002]
[1769018036939,10.27209842,2905.1,2903.9,0.002]
[1769018037615,10.32702237,2905.0,2903.9,0.002]
[1769018038113,6.88468158,2905.0,2903.9,0.002]
[1769018038281,10.32702237,2905.0,2903.9,0.002]
[1769018038484,1.34215714,2904.9,2903.9,0.002]
[1769018039594,10.3277334,2904.8,2903.9,0.002]
[1769018040211,6.8851556,2904.8,2903.9,0.002]
[1769018040404,3.44186686,2905.4,2903.9,0.002]
[1769018040805,10.89431896,2905.5,2903.9,0.002]
[1769018041114,1.80910175,2905.4,2903.9,0.002]
[1769018041512,1.80910175,2905.4,2904.0,0.07632396]
[1769018041808,10.32382392,2905.9,2904.1,7.54955309]
[1769018042012,7.19669856,2905.8,2903.9,0.002]
[1769018042177,7.19669856,2905.6,2903.9,0.002]
[1769018042381,24.40307176,2905.9,2903.9,0.002]
[1769018042610,24.40307176,2905.9,2903.9,7.55155309]
[1769018042611,2.60043831,2905.8,2903.9,7.55155309]
[1769018042812,2.60043831,2905.8,2904.2,7.62587705]
[1769018043012,6.88254928,2905.9,2904.2,7.62587705]
[1769018043230,10.32382392,2905.9,2904.2,7.54955309]
[1769018043898,6.88231244,2906.0,2904.5,0.07632396]
[1769018044500,6.88231244,2906.0,2904.3,7.62587705]
[1769018044851,20.10241317,2906.9,2904.7,0.07632396]
[1769018045111,30.0,2906.7,2904.7,7.54955309]
[1769018045281,30.0,2906.7,2904.7,7.93856886]
[1769018045691,10.32133764,2906.6,2904.7,7.93856886]
[1769018045890,7.19669856,2906.5,2904.7,0.38901577]
[1769018046096,17.19669856,2906.3,2904.7,0.38901577]
[1769018046317,7.19669856,2906.2,2904.7,0.38901577]
[1769018046712,2.4398928,2906.4,2904.7,0.38901577]
[1769018047210,0.569,2906.3,2904.7,0.38901577]
[1769018048015,10.32275823,2906.2,2904.7,0.39101577]
[1769018048326,1.08917582,2906.1,2904.7,0.39101577]
[1769018048481,1.08917582,2906.1,2904.7,7.55155309]
[1769018048707,1.08917582,2906.1,2904.7,0.002]
[1769018050129,6.88231244,2906.0,2904.7,0.002]
[1769018050722,3.44115622,2906.0,2904.7,7.55155309]
[1769018051028,6.8811285,2906.5,2904.7,7.55155309]
[1769018051341,6.8811285,2906.5,2904.9,0.07632396]
[1769018051640,3.44056425,2906.5,2905.1,7.62587705]
[1769018051830,3.44056425,2906.5,2905.2,0.38901577]
[1769018052028,0.001,2906.6,2905.2,0.38901577]
[1769018052229,0.001,2906.6,2905.3,8.01489282]
[1769018052442,0.001,2906.6,2905.4,0.38901577]
[1769018054924,0.001,2906.6,2905.4,0.46533973]
[1769018055427,0.001,2906.6,2905.4,11.61454734]
[1769018055624,6.8797083,2907.1,2905.6,7.78367775]
[1769018055830,3.43985415,2907.1,2905.6,7.78367775]
[1769018056213,10.31778786,2907.6,2905.8,0.07632396]
[1769018056417,1.82352756,2907.5,2905.9,7.70735379]
[1769018056612,6.87852524,2907.6,2905.9,7.70735379]
[1769018056846,6.87852524,2907.6,2906.1,0.07632396]
[1769018057246,6.87852524,2907.6,2906.1,7.78367775]
[1769018057814,3.43926262,2907.6,2906.1,7.78367775]
[1769018058016,3.43917433,2907.7,2906.1,7.78367775]
[1769018058216,6.8771061,2908.2,2906.5,0.07632396]
[1769018058443,10.31565915,2908.2,2906.4,7.70735379]
[1769018058656,10.31565915,2908.2,2906.5,0.07632396]
[1769018059041,10.31565915,2908.2,2906.4,7.70735379]
[1769018059253,10.31565915,2908.2,2906.3,0.07632396]
[1769018059254,7.34848773,2908.0,2905.8,7.78367775]
[1769018059428,7.34848773,2908.0,2906.0,0.07632396]
[1769018059747,1.03156592,2908.1,2906.5,7.70735379]
[1769018060545,6.87757908,2908.0,2906.5,7.70735379]
[1769018061647,0.001,2907.9,2906.6,0.07632396]
[1769018062554,0.001,2907.9,2906.2,0.07632396]
[1769018063338,0.001,2907.9,2906.4,0.07632396]
[1769018063652,0.001,2907.9,2906.5,3.44054855]
[1769018063853,0.001,2907.9,2906.9,0.07632396]
[1769018064057,0.001,2907.9,2907.0,0.38901577]
[1769018068165,6.87568756,2908.8,2907.2,7.78367775]
[1769018068333,6.87568756,2908.8,2907.3,0.38901577]
[1769018068527,3.43784378,2908.8,2907.4,8.17269352]
[1769018068729,3.43756678,2909.1,2907.4,7.70735379]
[1769018069047,1.37496801,2909.0,2907.4,7.70735379]
[1769018069564,8.72345574,2909.0,2907.0,0.07632396]
[1769018070065,8.72345574,2909.0,2907.2,0.07632396]
[1769018070229,8.72345574,2909.0,2907.0,7.78367775]
[1769018070429,0.87234557,2908.9,2907.0,7.78367775]
[1769018070629,10.31353134,2908.8,2907.2,0.07632396]
[1769018071262,6.87568756,2908.8,2907.2,0.07632396]
[1769018071637,10.31353134,2908.8,2907.2,0.07632396]
[1769018072860,6.87568756,2908.8,2907.2,0.07632396]
[1769018073157,1.11857815,2908.7,2907.2,7.78367775]
[1769018073360,0.001,2908.6,2907.2,7.78367775]
[1769018073726,0.001,2908.6,2907.2,7.70735379]
[1769018073928,7.34948773,2908.6,2906.6,7.70735379]
[1769018074734,7.34948773,2908.6,2906.2,0.07632396]
[1769018074735,7.34848773,2908.4,2906.2,7.70735379]
[1769018075166,10.0,2908.2,2906.2,7.70735379]
[1769018075326,7.34848773,2908.1,2906.2,7.70735379]
[1769018075533,7.91748773,2908.1,2906.1,0.569]
[1769018075761,7.34848773,2907.7,2905.4,7.70735379]
[1769018076074,5.64339642,2908.1,2905.4,7.70735379]
[1769018076075,7.34848773,2907.5,2905.4,7.70735379]
[1769018076427,7.34848773,2907.5,2905.5,0.07632396]
[1769018076653,0.569,2907.6,2905.7,7.78367775]
[1769018076856,7.34848773,2907.4,2905.2,7.70735379]
[1769018077034,7.34848773,2907.1,2905.1,0.07632396]
[1769018077237,22.27130097,2907.5,2905.1,0.07632396]
[1769018077238,7.34848773,2907.0,2905.1,0.07632396]
[1769018077465,8.0833365,2906.9,2905.3,0.07632396]
[1769018077961,8.0833365,2906.9,2905.1,7.78367775]
[1769018078938,6.88041832,2906.8,2905.3,0.07632396]
[1769018079141,3.44004543,2907.0,2905.7,7.78367775]
[1769018079142,6.88009445,2907.0,2905.7,7.78367775]
[1769018079872,3.44004123,2907.0,2905.7,7.78367775]
[1769018080060,6.88009445,2907.0,2905.7,7.78367775]
[1769018080451,10.32014767,2907.0,2905.7,7.70735379]
[1769018080651,10.32014767,2907.0,2905.1,3.51854442]
[1769018080652,10.32014767,2907.0,2905.3,7.70735379]
[1769018080858,6.88009445,2907.0,2905.3,7.70735379]
[1769018081046,0.68800945,2906.9,2905.3,7.70735379]
[1769018081248,10.31885253,2907.3,2905.4,0.07632396]
[1769018081454,10.31885253,2907.3,2905.4,7.78367775]
[1769018081968,21.10695777,2907.3,2905.4,7.70735379]
[1769018082966,6.87923502,2907.3,2905.7,0.07632396]
[1769018083178,0.6879235,2907.2,2905.5,7.78367775]
[1769018083741,0.6879235,2907.2,2905.5,7.70735379]
[1769018084366,0.6879235,2907.2,2905.1,0.07632396]
[1769018084367,8.03641123,2907.2,2905.1,0.07632396]
[1769018084678,7.34848773,2907.0,2905.1,0.07632396]
[1769018084887,0.73484877,2906.9,2905.6,0.002]
[1769018085243,10.32062748,2906.8,2905.6,0.002]
[1769018085450,7.2053796,2906.7,2905.6,0.002]
[1769018086283,7.2053796,2906.7,2904.7,0.64732396]
[1769018087283,7.2053796,2906.5,2904.7,0.64732396]
[1769018087969,7.2053796,2906.5,2904.7,0.002]
[1769018089381,7.2053796,2906.3,2904.7,0.002]
[1769018089865,7.2053796,2906.1,2904.7,0.002]
[1769018090064,7.2053796,2905.8,2904.7,0.002]
[1769018090575,7.2053796,2905.6,2903.9,0.002]
[1769018090779,10.47630349,2906.3,2903.9,0.002]
[1769018090780,7.2053796,2905.4,2903.9,0.002]
[1769018091485,17.53133559,2905.3,2903.9,0.002]
[1769018093204,3.44198533,2905.3,2904.1,7.65573112]
[1769018093364,3.44198533,2905.3,2904.0,0.07632396]
[1769018093365,6.88258758,2905.9,2904.4,7.73205508]
[1769018093568,11.38855428,2905.9,2904.4,7.65573112]
[1769018093793,7.94724134,2905.9,2904.4,7.65573112]
[1769018094491,11.38855428,2905.9,2904.4,7.65573112]
[1769018096163,3.44034994,2906.7,2904.7,7.73205508]
[1769018096164,7.2053796,2906.7,2904.7,7.73205508]
[1769018096476,0.6879235,2907.2,2905.6,0.07632396]
[1769018096675,10.31814273,2907.5,2905.6,7.73205508]
[1769018096884,6.87876182,2907.5,2905.8,7.73205508]
[1769018097081,6.87876182,2907.5,2906.0,7.73205508]
[1769018097282,1.03180644,2907.4,2906.0,7.73205508]
[1769018097596,1.03180644,2907.4,2905.6,0.07632396]
[1769018097896,6.87923502,2907.3,2905.8,0.07632396]
[1769018098470,0.001,2907.2,2905.8,0.07632396]
[1769018098888,0.001,2907.2,2905.7,7.19668111]
[1769018099093,0.6880235,2907.1,2905.7,7.19668111]
[1769018099398,0.6880235,2907.1,2905.4,0.07632396]
[1769018100025,6.87994496,2907.0,2905.4,0.07632396]
[1769018100902,10.31991744,2907.0,2905.2,7.27300507]
[1769018101411,6.87994496,2907.0,2905.4,0.07632396]
[1769018101575,0.75679685,2906.9,2905.4,0.07632396]
[1769018101970,0.6880235,2907.1,2905.7,7.19668111]
[1769018102205,3.44074166,2907.2,2905.8,7.27300507]
[1769018102206,6.88002634,2907.0,2905.8,7.27300507]
[1769018102710,6.88002634,2907.0,2905.8,7.19668111]
[1769018103173,10.32003951,2907.0,2905.4,7.19668111]
[1769018103382,6.88002634,2907.0,2905.4,7.19668111]
[1769018103683,0.68800263,2906.9,2905.4,7.19668111]
[1769018103897,6.88041832,2906.8,2905.4,7.19668111]
[1769018104103,10.32062748,2906.8,2904.9,7.27300507]
[1769018104411,7.54542953,2906.6,2904.5,3.44286867]
[1769018104617,7.54542953,2906.6,2904.6,0.07632396]
[1769018104938,7.54542953,2906.3,2904.2,0.07632396]
[1769018105108,7.54542953,2906.2,2904.0,0.07632396]
[1769018105410,7.54542953,2906.1,2904.0,7.19668111]
[1769018105610,10.0,2905.7,2903.9,0.002]
[1769018105789,7.54542953,2905.5,2903.9,0.002]
[1769018105976,10.32595599,2905.3,2903.9,0.002]
[1769018106176,13.76794132,2905.3,2903.9,0.002]
[1769018106402,10.32595599,2905.3,2903.9,0.002]
[1769018106993,6.88397066,2905.3,2903.9,0.002]
[1769018107585,3.44143492,2905.8,2904.0,0.07632396]
[1769018107586,3.44139307,2905.8,2904.0,0.07632396]
[1769018107788,1.09868226,2905.7,2904.2,7.27300507]
[1769018107989,10.32204789,2906.4,2904.4,7.19668111]
[1769018108195,21.30816005,2906.4,2904.4,7.19668111]
[1769018108487,7.54542953,2906.2,2904.0,3.51979756]
[1769018108702,7.54542953,2906.0,2903.9,7.19868111]
[1769018108903,7.54542953,2905.8,2904.0,0.07632396]
[1769018109712,7.54542953,2906.3,2904.0,7.27300507]
[1769018109921,10.32275823,2906.2,2904.3,7.19668111]
[1769018110118,0.001,2906.1,2904.3,7.19668111]
[1769018110441,7.54542953,2906.0,2904.1,0.002]
[1769018110594,17.54542953,2905.6,2904.1,0.002]
[1769018110911,7.54542953,2905.6,2904.1,0.002]
[1769018112129,10.3252452,2905.5,2904.1,0.002]
[1769018112301,1.75464295,2905.9,2904.3,7.19668111]
[1769018112619,7.54542953,2905.8,2904.1,0.002]
[1769018112913,10.32346866,2906.0,2904.1,0.002]
[1769018112914,7.54542953,2905.6,2904.1,0.002]
[1769018113106,13.76462488,2906.0,2904.1,0.002]
[1769018113313,0.569,2905.9,2904.1,0.002]
[1769018113691,37.54542953,2905.6,2904.1,0.002]
[1769018113891,7.54542953,2905.3,2904.1,0.002]
[1769018114109,21.31479269,2905.0,2903.0,0.002]
[1769018114502,17.8724519,2905.0,2903.0,0.002]
[1769018114689,6.88468158,2905.0,2903.3,7.27300507]
[1769018114885,0.68846816,2904.9,2903.3,7.27300507]
[1769018115286,3.44234079,2905.0,2903.8,0.07632396]
[1769018115507,6.8845438,2905.1,2903.8,0.07632396]
[1769018115701,10.3268157,2905.1,2903.3,0.07632396]
[1769018115907,6.8845438,2905.1,2903.5,0.07632396]
[1769018116240,4.13084341,2905.0,2903.7,0.07632396]
[1769018116520,7.57323244,2905.0,2903.5,3.52040741]
[1769018116732,7.57323244,2905.0,2903.3,3.52061252]
[1769018116894,0.75732324,2904.9,2903.0,7.76966695]
[1769018117094,0.75732324,2904.9,2903.2,7.69134299]
[1769018117719,0.75732324,2904.9,2903.0,3.52294863]
[1769018117926,0.75732324,2904.9,2903.4,7.76766695]
[1769018118525,4.19983015,2904.9,2903.6,7.76766695]
[1769018118705,3.44250691,2904.9,2903.6,7.76766695]
[1769018118901,6.88501382,2904.9,2903.6,7.76766695]
[1769018119426,3.44236717,2905.0,2903.7,0.07632396]
[1769018119828,3.44162995,2905.6,2903.7,7.76766695]
[1769018120127,10.32488985,2905.6,2903.8,7.76766695]
[1769018120315,9.00696539,2905.5,2903.4,3.44421575]
[1769018120520,13.76746744,2905.4,2903.4,0.07632396]
[1769018120713,10.32560058,2905.4,2903.3,7.69134299]
[1769018121027,21.01699144,2905.4,2903.3,7.69134299]
[1769018121223,7.249524,2905.3,2903.3,7.69134299]
[1769018121529,2.10169914,2905.2,2903.3,7.69134299]
[1769018121726,2.10169914,2905.2,2903.0,4.09195059]
[1769018121727,7.249524,2904.8,2903.0,0.002]
[1769018122031,7.249524,2904.7,2903.0,0.002]
[1769018122214,7.249524,2904.5,2903.0,0.002]
[1769018122417,21.02268008,2904.2,2903.0,0.002]
[1769018123325,17.57939106,2904.2,2903.0,0.002]
[1769018123528,6.88657804,2904.2,2903.0,0.002]
[1769018123732,6.88657804,2904.2,2904.0,0.002]
[1769018123935,6.88657804,2904.2,2902.3,7.76966695]
[1769018123936,17.57939106,2904.2,2902.3,7.69334299]
[1769018124141,17.57939106,2904.2,2902.3,7.68935257]
[1769018124142,0.6886578,2904.1,2902.3,7.68935257]
[1769018124325,7.9381818,2904.1,2902.6,0.002]
[1769018124539,3.44242342,2905.0,2903.6,0.07632396]
[1769018124716,6.88484684,2905.0,2903.6,0.07632396]
[1769018125033,6.88484684,2905.0,2903.2,7.69134299]
[1769018125034,10.32727026,2905.0,2903.2,7.69134299]
[1769018126034,10.32727026,2905.0,2903.0,0.07632396]
[1769018126739,10.32638053,2905.2,2903.0,3.52093259]
[1769018126934,2.10179625,2905.1,2903.0,0.07632396]
[1769018127241,2.10179625,2905.1,2903.0,3.52101618]
[1769018127420,2.10179625,2905.1,2903.0,0.07632396]
[1769018127622,2.10179625,2905.1,2903.0,3.52101873]
[1769018128347,2.10179625,2905.1,2903.4,7.76766695]
[1769018128519,17.57654637,2905.0,2903.0,3.44469477]
[1769018128725,17.57654637,2905.0,2903.0,3.52101873]
[1769018129024,21.01888716,2905.0,2903.0,0.07632396]
[1769018129333,2.10188872,2904.9,2903.0,7.76766695]
[1769018129662,6.88468158,2905.0,2903.6,0.07632396]
[1769018129966,3.44234079,2905.0,2903.4,7.76766695]
[1769018130146,3.44234079,2905.0,2903.6,0.07632396]
[1769018130349,3.44234079,2905.0,2903.6,7.76766695]
[1769018130560,4.13080042,2905.0,2903.6,7.76766695]
[1769018130857,4.13080042,2905.0,2903.2,0.07632396]
[1769018130858,7.57314121,2905.0,2903.2,3.44440735]
[1769018131012,7.57314121,2905.0,2903.3,3.44433698]
[1769018131214,7.57314121,2905.0,2903.4,3.52055173]
[1769018131430,0.75731412,2904.9,2903.4,3.52055173]
[1769018131655,0.75731412,2904.9,2903.2,7.76766695]
[1769018131859,0.75731412,2904.9,2902.8,11.21256087]
[1769018132029,8.00683812,2904.9,2902.8,7.69134299]
[1769018132853,17.5772574,2904.8,2902.8,7.69134299]
[1769018133058,1.83345715,2904.7,2903.3,7.69134299]
[1769018133353,4.19982749,2904.9,2903.4,0.07632396]
[1769018133653,6.88502674,2904.9,2903.4,0.07632396]
[1769018134443,0.569,2905.7,2903.6,0.07632396]
[1769018134643,6.8832599,2905.6,2903.8,7.76766695]
[1769018135048,3.44162995,2905.6,2904.0,0.07632396]